Cogmind - Beta 16.1 @@@ ROGUE MODE // 2026.04.05 @ 13:15:08 Player: MrFartsburg Result: Destroyed by Y-45 Defender with Heavy Assault Rifle Performance ------------- Evolutions (1) 500 Regions Visited (3) 600 Robots Destroyed (15) 75 Value Destroyed (419) 419 Prototype IDs (1) 20 Alien Tech Used (0) 0 Bonus (0) 0 TOTAL SCORE: 1614 Bonus ------- None Cogmind --------- Core Integrity 0/400 Matter 65/300 Energy 100/100 System Corruption 0% Temperature Cool (9) Movement Core (1350) Ox26 Location -9/Materials Parts ------- > --- POWER (2) -------- (None) > --- PROPULSION (2) --- (None) > --- UTILITY (2) ------ Huge Storage Unit Terrain Scanner > --- WEAPON (3) ------- (None) > --- INVENTORY (25) --- Aluminum Leg Flight Unit Flight Unit Heat Sink Light Assault Rifle Mining Laser Peak State ------------ > --- POWER ------------ Ion Engine Light Ion Engine > --- PROPULSION ------- Wheel Compact Wheel > --- UTILITY ---------- Huge Storage Unit Terrain Scanner > --- WEAPON ----------- EM Pulse Gun Medium Laser Bore Cannon > --- INVENTORY -------- Aluminum Leg Flight Unit Flight Unit Assault Rifle Light Assault Rifle Mining Laser [Rating: 13] Favorites ----------- Power Ion Engine Engine Ion Engine Propulsion Wheel Wheel Wheel Utility Huge Storage Unit Device Terrain Scanner Storage Huge Storage Unit Weapon Medium Laser Energy Gun Medium Laser Ballistic Gun Assault Rifle Ballistic Cannon Bore Cannon Build | -11 -10 -10 -9 ------- Run | Yrd Mat Min Mat Slots Evolved 2 | . . . 2 Power 1 | . . . 1 Propulsion . | . . . . Utility . | . . . . Weapon 1 | . . . 1 Parts Attached 12 | 6 2 1 3 Power 2 | 1 . . 1 Engine 2 | 1 . . 1 Core . | . . . . Reactor . | . . . . Propulsion 2 | 2 . . . Treads . | . . . . Leg . | . . . . Wheel 2 | 2 . . . Hover . | . . . . Flight . | . . . . Utility 3 | 1 2 . . Device 1 | . 1 . . Storage 2 | 1 1 . . Processor . | . . . . Hackware . | . . . . Protection . | . . . . Artifact . | . . . . Weapon 5 | 2 . 1 2 Energy Gun 2 | 2 . . . Energy Cannon . | . . . . Ballistic Gun 2 | . . . 2 Ballistic Cannon 1 | . . 1 . Launcher . | . . . . Special Weapon . | . . . . Impact Weapon . | . . . . Slashing Weapon . | . . . . Piercing Weapon . | . . . . Special Melee Weapon . | . . . . Unidentified Prototypes 1 | . . . 1 Parts Lost 9 | . . . 9 Power 2 | . . . 2 Propulsion 2 | . . . 2 Utility . | . . . . Weapon 5 | . . . 5 Highest Loss Streak 6 | . . . 6 To Critical Strikes . | . . . . Average Backups 6 | 1 6 7 6 Power . | . 1 1 . Propulsion 2 | . 3 3 3 Utility . | . . . . Weapon 2 | . 1 3 2 Tool/Special . | . . . . Unused Backups 8 | . 2 . 6 Power 1 | . 1 . . Propulsion 4 | . 1 . 3 Utility 1 | . . . 1 Weapon 2 | . . . 2 Tool/Special . | . . . . Average Slot Usage (%) 88 | . 92 100 77 Engine 13 | . 14 14 13 Wheel 21 | . 28 28 13 Device 10 | . 7 14 11 Storage 12 | . 14 14 11 Energy Gun 19 | . 28 20 13 Ballistic Gun 2 | . . . 5 Ballistic Cannon 6 | . . 7 9 Peak Build Rating 13 | 6 7 11 13 Average Rating 8 | 4 6 9 10 On Entrance 6 | . 6 7 11 Avg Prop Armor Cover (%) . | . . . . Naked Turns . | . . . . Heaviest Build 102 | 14 90 97 102 Greatest Support 26 | 26 26 26 26 Greatest Overweight (x) 27 | . 3 3 27 Average Overweight (x) 2 | . 1 3 4 Largest Inventory Capacity 25 | 8 25 25 25 Average Capacity 21 | 6 17 25 25 Most Carried 9 | 4 9 8 8 Average Carried 6 | 1 6 7 6 Final Capacity 25 | 8 25 25 25 Final Carried 8 | 4 7 8 6 Class Distribution -------------------- 69% | Mutant 30% | Skirmisher Dominant Class ---------------- Mutant | -10/Materials Mutant | -10/Mines Skirmisher | -9/Materials Resources | -11 -10 -10 -9 ----------- Run | Yrd Mat Min Mat Matter Collected 409 | 215 42 44 108 Remotely . | . . . . Salvage Created 473 | . 51 56 366 Parts 33 | . 9 5 19 Haulers Intercepted . | . . . . Recyclers Shooed 1 | . 1 . . Parts Field Recycled . | . . . . Retrieved Matter . | . . . . Parts Self-Destructed . | . . . . Prevented . | . . . . Parts Restored . | . . . . Kills | -11 -10 -10 -9 ------- Run | Yrd Mat Min Mat Combat Hostiles Destroyed 14 | . 3 3 8 Guns 10 | . 3 3 4 Cannons 3 | . . . 3 AOE 1 | . . . 1 Classes Destroyed 4 | . 1 . 3 Worker 1 | . . . 1 Swarmer 6 | . 3 3 . Grunt 5 | . . . 5 Sentry 3 | . . . 3 Best Kill Streak 3 | . 3 3 2 Combat Bots Only 3 | . 3 3 2 Max Kills in Single Turn 2 | . 1 1 2 Gunslinging 1 | . . . 1 Exploded 1 | . . . 1 Melee . | . . . . Uniques/NPCs Destroyed . | . . . . Combat | -11 -10 -10 -9 -------- Run | Yrd Mat Min Mat Hostile Shots Fired 120 | . 17 4 99 Missed 22 | . 2 . 20 Hits 98 | . 15 4 79 Projectile 98 | . 15 4 79 Critical Strikes 3 | . . . 3 Damage Taken 1426 | . 121 32 1273 Core 499 | . 84 10 405 Absorbed by Shields . | . . . . Core Remaining (%) 81 | 100 . 62 . Volleys Fired 48 | . 9 5 34 Largest 3 | . 2 2 3 Hottest 138 | . 90 98 138 Shots Fired 115 | . 18 10 87 Gun 84 | . 18 8 58 Cannon 31 | . . 2 29 Launcher . | . . . . Special . | . . . . Kinetic 58 | . . 2 56 Thermal 35 | . 9 5 21 Explosive . | . . . . Electromagnetic 22 | . 9 3 10 Robot Hit Streak 7 | . 3 2 7 Robot Miss Streak 6 | . 4 1 6 Penetration Max . | . . . . Secondary Targets 2 | . 1 . 1 Max Gunslinging Chain 1 | . 1 . 1 Shots Hit Robots 54 | . 7 3 44 Core Hits 20 | . 3 3 14 Critical Kills 2 | . . . 2 Critical Parts Destroyed 5 | . . . 5 Critical Strikes 9 | . . . 9 Burn 1 | . . . 1 Destroy 8 | . . . 8 Melee Attacks . | . . . . Impact . | . . . . Slashing . | . . . . Piercing . | . . . . Sneak Attacks . | . . . . Combat Hostiles . | . . . . Follow-up Attacks . | . . . . Damage Inflicted 932 | . 89 47 796 Guns 560 | . 85 47 428 Cannons 221 | . . . 221 Explosions 147 | . . . 147 Melee . | . . . . Ramming 4 | . 4 . . Kinetic 442 | . . . 442 Thermal 358 | . 39 24 295 Explosive . | . . . . Electromagnetic 128 | . 46 23 59 Impact . | . . . . Slashing . | . . . . Piercing . | . . . . Highest Corruption 1 | . 1 1 . Average Corruption 1 | . 1 1 . Corruption Purged . | . . . . Corruption Blocked . | . . . . Effects 1 | . 1 . . Message Errors 1 | . 1 . . Overload Shots . | . . . . Overflow Damage 101 | . . . 101 Projectiles . | . . . . Explosions 101 | . . . 101 Melee . | . . . . Knockbacks . | . . . . Impact . | . . . . Kinetic . | . . . . Secondary . | . . . . Self-Inflicted Damage 161 | . 2 . 159 Shots 2 | . . . 2 Rammed 1 | . 1 . . Targets Rammed 1 | . 1 . . Kicked . | . . . . Crushed . | . . . . Highest Temperature 430 | . 290 90 430 Average Temperature 155 | . 154 43 170 Received Heat Transfer 450 | . . . 450 Effects 9 | . . . 9 Shutdowns 1 | . . . 1 Energy Bleed 2 | . . . 2 Interference 4 | . . . 4 Matter Decay 2 | . . . 2 Siege Activations . | . . . . Martial Activations . | . . . . Shielding Activations . | . . . . Robots Disrupted . | . . . . Combat Hostiles . | . . . . Robots Corrupted . | . . . . Combat Hostiles . | . . . . Parts Fried . | . . . . Impact Corruptions . | . . . . Robots Melted . | . . . . Combat Hostiles . | . . . . Parts Melted . | . . . . Heat Transferred 803 | . 111 74 618 Parts Sabotaged . | . . . . Parts Stolen . | . . . . Parts Stripped . | . . . . Power Chain Reactions . | . . . . Alert | -11 -10 -10 -9 ------- Run | Yrd Mat Min Mat Maximum Alert Level . | . . . . Low Security (%) 100 | 100 100 100 100 Level 1 . | . . . . Level 2 . | . . . . Level 3 . | . . . . Level 4 . | . . . . Level 5 . | . . . . High Security . | . . . . Max Security . | . . . . Peak Influence 172 | . 60 70 172 Initial . | . . . . Average 44 | . 24 24 80 Influence Increases 522 | . 71 71 380 Destroy 0b10 Robot/C 280 | . 60 60 160 Destroy 0b10 Robot/NC 5 | . . . 5 Destroy Leader 70 | . 10 10 50 Allied During Kill 6 | . . . 6 Successful Hack 2 | . 1 . 1 Disable Machine 60 | . . . 60 Destroy Structure 54 | . . 1 53 Lose Combat Pursuer 45 | . . . 45 Influence Decreases 396 | . 71 71 254 Time Decay 266 | . 71 71 124 Lost Part 90 | . . . 90 Lost Ally 40 | . . . 40 Squads Dispatched 1 | . . . 1 Investigation . | . . . . Extermination . | . . . . Reinforcement 1 | . . . 1 Assault . | . . . . Garrison . | . . . . Intercept . | . . . . Searches Triggered . | . . . . Construction Impeded . | . . . . Haulers Reinforced . | . . . . Active Scanning Responses . | . . . . Cargo Convoy Interrupts . | . . . . Stealth | -11 -10 -10 -9 --------- Run | Yrd Mat Min Mat Distress Signals 1 | . . . 1 Communications Jammed . | . . . . Distress Signals . | . . . . Times Spotted 18 | . 3 3 12 Peak Tracking Total 4 | . 3 3 4 Tactical Retreats 2 | . . . 2 Traps | -11 -10 -10 -9 ------- Run | Yrd Mat Min Mat Traps Triggered 1 | . . . 1 Indirectly . | . . . . Trap Hack Attempts . | . . . . Triggered . | . . . . Disarmed . | . . . . Reprogrammed . | . . . . Reused . | . . . . Traps Extracted . | . . . . Installed . | . . . . Triggered . | . . . . Machines | -11 -10 -10 -9 ---------- Run | Yrd Mat Min Mat Machines Disabled 4 | . . . 4 Max in Single Turn 2 | . . . 2 Machines Repaired . | . . . . Machines Dismantled . | . . . . Machines Sabotaged . | . . . . Overloaded Fab Kills . | . . . . Hacking | -11 -10 -10 -9 --------- Run | Yrd Mat Min Mat Machines Accessed 2 | . 1 . 1 Terminals 1 | . . . 1 Fabricators . | . . . . Repair Stations . | . . . . Recycling Units 1 | . 1 . . Scanalyzers . | . . . . Garrison Access . | . . . . Total Hacks 8 | . 4 . 4 Successful 6 | . 3 . 3 Failed 2 | . 1 . 1 Catastrophic . | . . . . Database Lockouts . | . . . . Manual . | . . . . Terminals 4 | . . . 4 Fabricators . | . . . . Repair Stations . | . . . . Recycling Units 4 | . 4 . . Scanalyzers . | . . . . Garrison Access . | . . . . Terminal Hacks 3 | . . . 3 Record 3 | . . . 3 Fabricator Hacks . | . . . . Repair Station Hacks . | . . . . Recycling Unit Hacks 3 | . 3 . . Recycle Component 2 | . 2 . . Report Inventory 1 | . 1 . . Scanalyzer . | . . . . Garrison Access Hacks . | . . . . Unauthorized Hacks . | . . . . Terminals . | . . . . Fabricators . | . . . . Repair Stations . | . . . . Recycling Units . | . . . . Scanalyzers . | . . . . Garrison Access . | . . . . Data Cores Recovered . | . . . . Used . | . . . . Hacking Detections 2 | . 1 . 1 Full Trace Events 2 | . 1 . 1 Feedback Events . | . . . . Feedback Blocked . | . . . . Robot Schematics Acquired . | . . . . Robots Built . | . . . . Authchips . | . . . . Time . | . . . . Total Robot Build Rating . | . . . . Part Schematics Acquired . | . . . . Parts Built . | . . . . Authchips . | . . . . Time . | . . . . Total Part Build Rating . | . . . . Part Studies Acquired . | . . . . Parts Repaired . | . . . . Time . | . . . . Parts Recycled 2 | . 2 . . Recycled Matter . | . . . . Retrieved Matter . | . . . . Retrieved Components . | . . . . Parts Scanalyzed . | . . . . Part Schematics Acquired . | . . . . Parts Damaged . | . . . . Bothacking | -11 -10 -10 -9 ------------ Run | Yrd Mat Min Mat Used RIF Installer . | . . . . Robots Hacked . | . . . . Non-combat . | . . . . Combat . | . . . . Robot Hacks Applied . | . . . . Relay Couplers Released . | . . . . Fabnet Peak Effective % . | . . . . Robots Rewired . | . . . . Allies Hacked . | . . . . Hacks Repelled . | . . . . Allies | -11 -10 -10 -9 -------- Run | Yrd Mat Min Mat Total Allies 2 | . . 2 . Largest Group 2 | . . 2 2 Highest-Rated Group 41 | . . 41 41 Highest-Rated Ally 31 | . . 31 31 Total Orders . | . . . . Ally Attacks . | . . . . Total Damage . | . . . . Kills . | . . . . Allies Corrupted . | . . . . Allies Melted . | . . . . Intel | -11 -10 -10 -9 ------- Run | Yrd Mat Min Mat Active Infowar (turns) 556 | . 103 214 239 Terrain 556 | . 103 214 239 Robot Analysis Total . | . . . . Derelict Logs Recovered . | . . . . Drone Launches . | . . . . Drone Recoveries . | . . . . Exploration | -11 -10 -10 -9 ------------- Run | Yrd Mat Min Mat Turns Passed 774 | 58 200 214 302 Spaces Moved 432 | 46 137 144 105 Core 5 | 2 . . 3 Treads . | . . . . Legs . | . . . . Wheels 427 | 44 137 144 102 Hover . | . . . . Flight . | . . . . Fastest Speed 50 | 50 90 135 135 Average Speed 136 | 87 116 135 187 Slowest Speed 1400 | 90 135 135 1400 Overloaded Moves . | . . . . Propulsion Burnouts . | . . . . Robots Hopped . | . . . . Potential Cave-ins . | . . . . Cave-ins Triggered . | . . . . Exploration Rate (%) 15 | 3 21 23 14 Regions Visited 3 Branch Regions 1 Pre-discovered Areas . | . . . . Known Exits Taken . | . . . . Unknown Exits Taken 3 | 1 1 1 . Scrap Searched 1 | . . 1 . Spaces Dug 1 | . . 1 . Terrain Destroyed 59 | . . 1 58 Melee . | . . . . Projectile 14 | . . 1 13 AOE 45 | . . . 45 Terrain Rammed . | . . . . Walls Destroyed . | . . . . Machines Disabled . | . . . . Actions | -11 -10 -10 -9 --------- Run | Yrd Mat Min Mat Total 525 | 63 161 153 148 Wait 9 | 2 3 3 1 Move 429 | 45 136 143 105 Hop . | . . . . Pick Up 22 | 10 8 1 3 Fast Attach . | . . . . Attach 12 | 6 2 . 4 Detach . | . . . . Swap 1 | . . 1 . Drop 3 | . 2 . 1 Fire 48 | . 9 5 34 Melee . | . . . . Ram 1 | . 1 . . Kick . | . . . . Crush . | . . . . Escape Stasis . | . . . . Rewire . | . . . . Trap . | . . . . Miscellaneous . | . . . . Route ------- -11/Scrapyard -10/Materials -10/Mines -9/Materials History --------- Turn | Location | Event 38 | -11/Scrapyard | Discovered new exit (range 15) 59 | -11/Scrapyard | Entered Materials 238 | -10/Materials | Discovered new exit (range 10) 259 | -10/Materials | Entered Mines 299 | -10/Mines | Discovered new exit (range 9) 310 | -10/Mines | Build established: Mutant 343 | -10/Mines | Met a Derelict bent on vengeance 351 | -10/Mines | A weapon hastily lodged in a ceiling crevice suddenly fell to the ground 473 | -10/Mines | Entered Materials 473 | -9/Materials | Accompanied by 2 allies 473 | -9/Materials | Evolved 2 slots: Power x1, Weapon x1 478 | -9/Materials | Led the pair of lost Derelicts to an unsafe place 721 | -9/Materials | Core integrity fell below 50% 761 | -9/Materials | Core integrity fell below 20% 775 | -9/Materials | Destroyed by Y-45 Defender with Heavy Assault Rifle Last Messages --------------- U-05 Engineer builds a Door. Overheating: Matter decay (-2). G-34 Mercenary destroyed. Switching to secondary target: Y-45 Defender. Y-45 Defender destroyed. U-05 Engineer builds a Wall. Critical hit (Burn: +37). Assault Rifle destroyed. Overheating: Energy bleed (-24). R-06 Scavenger collects Sml. Laser. U-05 Engineer builds a Wall. R-06 Scavenger collects Wheel. U-05 Engineer builds a Wall. R-06 Scavenger collects Wheel. U-05 Engineer builds a Wall. R-06 Scavenger collects Lgt. Ion Engine. U-05 Engineer builds a Wall. Imp. Assault Rifle destroyed. Critical hit (Burn: +37). Acquired 56 matter. Map ----- +----------------------------------------------------+ | ?????????????????????????????????????????????????? | | ?????????????????????????????????????????????????? | | ?????????????????????????????????????????????????? | | ?????????????????????????????????????????????????? | | ?????????????????????????????????????????????????? | | ?????????????????????????????????????????????????? | | ?????????????????????????????????????????????????? | | ?????????????????????????????????????????????????? | | ?????????????????????????????????????????????????? | | ?????????????????????????????????????????????????? | | ?????????????????????????????????????????????????? | | ?????????????????????????????????????????????????? | | ?????????????????????????????????????????????????? | | ?????????????????????????????????????????????????? | | ?????????????????????????????? ??????????????????? | | ????????????????????????????? ??????????????????? | | ????????????????????????????? ???????????????????? | | ????????????????????????????# ???????????????????? | | ???????????????????????????# ???????????????????? | | ???????????????????####+#####??#?????????????????? | | ???????????????????# ###??????????????????? | | ???????????????????# """ "%###??????????????????? | | ???????????????????# """ "%+=???????????????????? | | ???????????????????# """%!%##???? ?????????????? | | ???????????????????# [ Y!###??????????????????? | | ?????????????#??#?## "" @ =##???????????????????? | | ???????????????????# "" =*=#??????????#?????????? | | ???????????????????# " #???#????????????????? | | ???????????????????# #??## ????#??????????? | | ?????????????##????######+######?????????????????? | | ?????######??????####### "" #?????????????????? | | ?? ??# ####### # ""S #? ??? ???????????? | | # % # "" #????? ???????????? | | % " [ % + #?????????????????? | | ??? " %%! [ # #?????????????????? | | ?????# ###+### # #????? ???????????? | | ??? ??# ?## ###############?????????????????? | | ??????# #?# #???????????????????????????????? | | ??????# #?# #???? ?? ???????????????????????? | | #####?# #?# #?????? ????????????????????????? | | #?## #?# #???????????????????????????????? | | #??# #?# " #??#?????????? ?????????????????? | | [ ##?# #?# T ##????? "???????????????????????? | | #??# #?# " #???? ?????????????????????? | | #??# ### #### [ ????????????????????? | | #??# " """ "#????#??????????????????????? | | #??# "" """"##??????????????????????????? | | #?## " " #??????????????????????????? | | ##?# " " #??#???????????????????????? | | ####### " " #??????????????????????????? | +----------------------------------------------------+ Best States ------------- Heat Dissipation 28 Energy Generation 15 Energy Capacity 275 Matter Stores 300 Matter Capacity 300 Sight Range 16 Terrain Scan Range 14 Terrain Scan Density 10 Evasion (%) 44 Item Schematics ----------------- None Robot Schematics ------------------ None Fabricated ------------ Nothing Repaired ---------- Nothing Studied --------- None Alien Tech Used ----------------- None Achievements -------------- None Challenges ------------ None Game ------ Seed DroneSalvageRay Manual? 0 Play Time 00:13:32 Cumulative 22.3 hours Start 2026.04.05 @ 13:02:45 End 2026.04.05 @ 13:15:08 Sessions 1 Manual Loads 0 Difficulty Rogue Special Mode None Game No. 42 Rogue 42 Adventurer 0 Explorer 0 Win Type - Total 0 Types 0/0/0/0/0/0/0/0/0/0 Lore% 10 Gallery% 19 Achievement% 13 Wizard Run 0 Options --------- Layout 1 ASCII 0 Keyboard 0 Movement Numpad Keybinds 0 Fullscreen 1 Font 32/SmallcapsGlow Map View 50x35 Zoom Use 0% Tactical HUD 0 Map Filters NONE Filters NONE Steam 1 RUN: 27185d1d-ca9a-49dd-ab3e-a1514134f0e7